[Event "28th Hit Open-A 2024"]
[Site "Nova Gorica"]
[Date "2024.01.29"]
[Round "5.34"]
[White "Atakay, Mustafa"]
[Black "Petrosino, Germano"]
[Result "1-0"]
[ECO "A55"]
[WhiteElo "1889"]
[BlackElo "1715"]
[Annotator "NA RC"]
[PlyCount "65"]
[EventDate "2024.01.22"]
[EventType "swiss"]
[EventCountry "SLO"]
[SourceTitle "playchess.com"]
[Source "ChessBase"]
[SourceQuality "1"]
[TimeControl "5400+30"]

1. d4 {[%emt 0:03:17]} d6 {[%emt 0:00:07]} 2. Nf3 {[%emt 0:00:19]} Nf6 {[%emt 0:00:15]} 3. c4 {[%emt 0:00:19]} Nbd7 {[%emt 0:00:18]} 4. Nc3 {[%emt 0:01:43]} e5 {[%emt 0:00:31]} 5. g3 {[%emt 0:01:10]} Be7 {[%emt 0:00:26]} 6. Bg2 {[%emt 0:00:15]} O-O {[%emt 0:00:13]} 7. O-O {[%emt 0:00:12]} c6 {[%emt 0:00:19]} 8. e4 {[%emt 0:05:10]} a6 {[%emt 0:01:48]} 9. Qc2 {[%emt 0:04:00]} b5 {[%emt 0:02:24]} 10. b3 {[%emt 0:00:16]} Bb7 {[%emt 0:01:42]} 11. Rd1 {[%emt 0:03:19]} Qc7 {[%emt 0:01:16]} 12. Bb2 {[%emt 0:00:49]} Rac8 {[%emt 0:02:03]} 13. Rac1 {[%emt 0:01:27]} Rfe8 {[%emt 0:06:42]} 14. cxb5 {[%emt 0:12:28]} cxb5 {[%emt 0:01:16]} 15. Qd3 {[%emt 0:00:50]} Qb8 {[%emt 0:01:15]} 16. Ne1 {[%emt 0:05:19]} exd4 {[%emt 0:06:54]} 17. Qxd4 {[%emt 0:00:27]} Qa8 {[%emt 0:05:59]} 18. Nd3 {[%emt 0:11:07]} Bf8 {[%emt 0:04:08]} 19. f3 {[%emt 0:00:08]} Nc5 {[%emt 0:03:34]} 20. Bh3 {[%emt 0:02:27]} Rcd8 {[%emt 0:02:39]} 21. Nb4 {[%emt 0:01:03]} Ncxe4 {[%emt 0:07:15]} 22. Nxe4 {[%emt 0:01:52]} Nxe4 {[%emt 0:00:20]} 23. fxe4 {[%emt 0:00:36]} Rxe4 {[%emt 0:00:08]} 24. Qd2 {[%emt 0:00:31]} d5 {[%emt 0:09:09]} 25. Nd3 {[%emt 0:00:29]} Rde8 {[%emt 0:02:12]} 26. Re1 {[%emt 0:00:09]} Qa7+ {[%emt 0:00:40]} 27. Kf1 {[%emt 0:01:24]} Re3 {[%emt 0:02:51]} 28. Rxe3 {[%emt 0:03:11]} Rxe3 {[%emt 0:00:24]} 29. Bg2 {[%emt 0:00:17]} d4 {[%emt 0:02:39]} 30. Bxb7 {[%emt 0:06:40]} Qxb7 {[%emt 0:00:36]} 31. Nf2 {[%emt 0:00:06]} Rf3 {[%emt 0:09:05]} 32. Qxd4 {[%emt 0:01:54]} f5 {[%emt 0:04:26]} 33. Rd1 {[%emt 0:00:39]} 1-0

[Event "28th Hit Open-A 2024"]
[Site "Nova Gorica"]
[Date "2024.01.29"]
[Round "5.35"]
[White "Papler, Peter"]
[Black "Kekic, Urban"]
[Result "1/2-1/2"]
[ECO "D05"]
[WhiteElo "1691"]
[BlackElo "1885"]
[Annotator "NA RC"]
[PlyCount "100"]
[EventDate "2024.01.22"]
[EventType "swiss"]
[EventCountry "SLO"]
[SourceTitle "playchess.com"]
[Source "ChessBase"]
[SourceQuality "1"]
[TimeControl "5400+30"]

1. d4 {[%emt 0:00:03]} d5 {[%emt 0:00:22]} 2. Nf3 {[%emt 0:00:07]} Nf6 {[%emt 0:00:14]} 3. e3 {[%emt 0:00:20]} c5 {[%emt 0:00:17]} 4. c3 {[%emt 0:00:16]} e6 {[%emt 0:00:27]} 5. Nbd2 {[%emt 0:00:33]} Nc6 {[%emt 0:00:09]} 6. Bd3 {[%emt 0:01:32]} Be7 {[%emt 0:01:39]} 7. O-O {[%emt 0:00:13]} O-O {[%emt 0:01:09]} 8. Re1 {[%emt 0:00:31]} Qc7 {[%emt 0:04:11]} 9. dxc5 {[%emt 0:04:28]} Bxc5 {[%emt 0:00:37]} 10. e4 {[%emt 0:00:49]} dxe4 {[%emt 0:10:09]} 11. Nxe4 {[%emt 0:01:08]} Be7 {[%emt 0:03:32]} 12. Qe2 {[%emt 0:02:07]} b6 {[%emt 0:05:50]} 13. Bg5 {[%emt 0:01:58]} Nd5 {[%emt 0:05:42]} 14. Bc2 {[%emt 0:08:51]} Rd8 {[%emt 0:07:17]} 15. Rad1 {[%emt 0:02:15]} Bb7 {[%emt 0:00:50]} 16. Bxe7 {[%emt 0:01:29]} Qxe7 {[%emt 0:02:25]} 17. Neg5 {[%emt 0:08:13]} h6 {[%emt 0:07:27]} 18. Ne4 {[%emt 0:05:02]} Rac8 {[%emt 0:06:43]} 19. Ng3 {[%emt 0:00:45]} Rc7 {[%emt 0:05:34]} 20. Qe4 {[%emt 0:01:52]} Nf6 {[%emt 0:01:22]} 21. Qf4 {[%emt 0:00:43]} Rcd7 {[%emt 0:04:32]} 22. Rxd7 {[%emt 0:04:20]} Rxd7 {[%emt 0:03:36]} 23. Nf5 {[%emt 0:03:48]} Qd8 {[%emt 0:00:39]} 24. Ne3 {[%emt 0:00:06]} Qb8 {[%emt 0:04:32]} 25. Qh4 {[%emt 0:03:48]} Qd8 {[%emt 0:02:42]} 26. h3 {[%emt 0:02:28]} Qc7 {[%emt 0:01:44]} 27. Ng4 {[%emt 0:05:12]} Nxg4 {[%emt 0:03:52]} 28. Qxg4 {[%emt 0:00:09]} Qd8 {[%emt 0:02:16]} 29. Qe4 {[%emt 0:02:08]} g6 {[%emt 0:00:21]} 30. Qf4 {[%emt 0:00:53]} Kg7 {[%emt 0:00:48]} 31. h4 {[%emt 0:03:10]} Qf6 {[%emt 0:00:36]} 32. Qg3 {[%emt 0:00:44]} h5 {[%emt 0:02:01]} 33. Ba4 {[%emt 0:01:11]} Rd8 {[%emt 0:03:35]} 34. Qc7 {[%emt 0:02:11]} Qe7 {[%emt 0:00:13]} 35. Qg3 {[%emt 0:00:44]} Qd6 {[%emt 0:00:43]} 36. Qg5 {[%emt 0:02:20]} Qe7 {[%emt 0:00:25]} 37. Qe3 {[%emt 0:00:42]} Qf6 {[%emt 0:00:39]} 38. Bc2 {[%emt 0:01:30]} Na5 {[%emt 0:00:57]} 39. Ng5 {[%emt 0:01:21]} Nc4 {[%emt 0:01:07]} 40. Qg3 {[%emt 0:00:51]} Rd2 {[%emt 0:04:37]} 41. Be4 {[%emt 0:02:28]} Ba6 {[%emt 0:02:17]} 42. b3 {[%emt 0:01:10]} Nd6 {[%emt 0:01:22]} 43. c4 {[%emt 0:01:15]} Nf5 {[%emt 0:00:50]} 44. Bxf5 {[%emt 0:03:44]} Qxf5 {[%emt 0:00:04]} 45. a4 {[%emt 0:00:34]} Rd3 {[%emt 0:01:37]} 46. Qc7 {[%emt 0:01:09]} Rxb3 {[%emt 0:00:21]} 47. Nxe6+ {[%emt 0:00:06]} Kh6 {[%emt 0:00:01]} 48. Qe7 {[%emt 0:00:02]} Kh7 {[%emt 0:00:03]} 49. Ng5+ {[%emt 0:00:01]} Kg7 {[%emt 0:00:05]} 50. Rb1 {[%emt 0:00:02]} Qf4 {[%emt 0:00:10]} 1/2-1/2

[Event "28th Hit Open-A 2024"]
[Site "Nova Gorica"]
[Date "2024.01.29"]
[Round "5.36"]
[White "Petrovcic, Cvetko"]
[Black "Budai, Federico"]
[Result "1-0"]
[ECO "B23"]
[WhiteElo "1611"]
[BlackElo "1861"]
[Annotator "NA RC"]
[PlyCount "97"]
[EventDate "2024.01.22"]
[EventType "swiss"]
[EventCountry "SLO"]
[SourceTitle "playchess.com"]
[Source "ChessBase"]
[SourceQuality "1"]
[TimeControl "5400+30"]

1. e4 c5 {[%emt 0:02:07]} 2. f4 {[%emt 0:01:04]} Nc6 {[%emt 0:00:20]} 3. Nf3 {[%emt 0:00:03]} e6 {[%emt 0:00:16]} 4. Nc3 {[%emt 0:00:34]} Nge7 {[%emt 0:01:01]} 5. Nb5 {[%emt 0:00:52]} d5 {[%emt 0:04:19]} 6. e5 {[%emt 0:04:47]} Ng6 {[%emt 0:03:20]} 7. d4 {[%emt 0:04:29]} a6 {[%emt 0:02:47]} 8. Nc3 {[%emt 0:02:23]} cxd4 {[%emt 0:07:34]} 9. Nxd4 {[%emt 0:01:33]} Bc5 {[%emt 0:00:19]} 10. Nce2 {[%emt 0:00:34]} O-O {[%emt 0:02:51]} 11. c3 {[%emt 0:01:54]} f6 {[%emt 0:03:43]} 12. Be3 {[%emt 0:05:53]} Be7 {[%emt 0:05:12]} 13. Nf3 {[%emt 0:05:16]} fxe5 {[%emt 0:02:41]} 14. fxe5 {[%emt 0:02:08]} Ngxe5 {[%emt 0:01:46]} 15. Ned4 {[%emt 0:12:44]} Nxf3+ {[%emt 0:08:31]} 16. Nxf3 {[%emt 0:00:22]} e5 {[%emt 0:06:57]} 17. h4 {[%emt 0:02:35]} Bg4 {[%emt 0:05:18]} 18. Be2 {[%emt 0:01:37]} Bxf3 {[%emt 0:03:39]} 19. Bxf3 {[%emt 0:00:19]} e4 {[%emt 0:06:00]} 20. Bg4 {[%emt 0:00:44]} Qd6 {[%emt 0:03:52]} 21. Rh3 {[%emt 0:05:43]} Ne5 {[%emt 0:02:00]} 22. Be2 {[%emt 0:02:06]} b5 {[%emt 0:06:45]} 23. Qd2 {[%emt 0:00:18]} Rad8 {[%emt 0:02:20]} 24. O-O-O {[%emt 0:01:52]} Nc4 {[%emt 0:01:53]} 25. Bxc4 {[%emt 0:02:09]} bxc4 {[%emt 0:00:04]} 26. Bd4 {[%emt 0:00:37]} a5 {[%emt 0:02:40]} 27. Be3 {[%emt 0:01:55]} a4 {[%emt 0:02:18]} 28. a3 {[%emt 0:02:57]} Bf6 {[%emt 0:04:10]} 29. g4 {[%emt 0:05:39]} Be5 {[%emt 0:02:53]} 30. Bg5 {[%emt 0:00:57]} Rd7 {[%emt 0:00:09]} 31. Be3 {[%emt 0:03:46]} Bf4 {[%emt 0:03:36]} 32. Rf1 {[%emt 0:02:09]} Rdf7 {[%emt 0:00:25]} 33. Bxf4 {[%emt 0:02:40]} Rxf4 {[%emt 0:00:04]} 34. Rd1 {[%emt 0:01:14]} Rd8 {[%emt 0:01:22]} 35. g5 {[%emt 0:00:13]} Rf5 {[%emt 0:01:08]} 36. h5 {[%emt 0:00:42]} Qe5 {[%emt 0:01:28]} 37. h6 {[%emt 0:00:36]} Rxg5 {[%emt 0:00:30]} 38. hxg7 {[%emt 0:00:29]} Rxg7 {[%emt 0:01:00]} 39. Rdh1 {[%emt 0:00:12]} Rdd7 {[%emt 0:00:22]} 40. Rh5 {[%emt 0:00:15]} Qe6 {[%emt 0:00:27]} 41. Rh6 {[%emt 0:00:43]} Rg6 {[%emt 0:02:05]} 42. R6h5 {[%emt 0:00:10]} Qf7 {[%emt 0:00:45]} 43. Qd4 {[%emt 0:00:48]} Qf4+ {[%emt 0:00:08]} 44. Kb1 {[%emt 0:00:14]} Qf3 {[%emt 0:00:23]} 45. Qe5 {[%emt 0:00:56]} Qf8 {[%emt 0:00:49]} 46. Rf5 {[%emt 0:00:36]} Rf7 {[%emt 0:00:36]} 47. Qxd5 {[%emt 0:00:07]} Kg7 {[%emt 0:00:32]} 48. Rxh7+ {[%emt 0:00:23]} Kxh7 {[%emt 0:00:31]} 49. Rxf7+ {[%emt 0:00:02]} 1-0

[Event "28th Hit Open-A 2024"]
[Site "Nova Gorica"]
[Date "2024.01.29"]
[Round "5.37"]
[White "Pagnutti, Lorenzo"]
[Black "Bajec, Borut"]
[Result "1-0"]
[ECO "B22"]
[WhiteElo "1859"]
[BlackElo "1703"]
[Annotator "NA RC"]
[PlyCount "73"]
[EventDate "2024.01.22"]
[EventType "swiss"]
[EventCountry "SLO"]
[SourceTitle "playchess.com"]
[Source "ChessBase"]
[SourceQuality "1"]
[TimeControl "5400+30"]

1. e4 {[%emt 0:00:00]} c5 {[%emt 0:05:21]} 2. c3 {[%emt 0:00:21]} d5 {[%emt 0:01:05]} 3. exd5 {[%emt 0:00:22]} Qxd5 {[%emt 0:00:12]} 4. d4 {[%emt 0:00:10]} e6 {[%emt 0:01:23]} 5. Nf3 {[%emt 0:00:40]} Nf6 {[%emt 0:02:09]} 6. Bd3 {[%emt 0:00:40]} Be7 {[%emt 0:00:36]} 7. O-O {[%emt 0:00:19]} O-O {[%emt 0:00:11]} 8. Be3 {[%emt 0:00:32]} Nc6 {[%emt 0:01:49]} 9. dxc5 {[%emt 0:00:57]} Bxc5 {[%emt 0:00:16]} 10. Bxh7+ {[%emt 0:00:28]} Nxh7 {[%emt 0:00:33]} 11. Qxd5 {[%emt 0:00:09]} exd5 {[%emt 0:00:28]} 12. Bxc5 {[%emt 0:00:13]} Re8 {[%emt 0:00:14]} 13. Nbd2 {[%emt 0:01:37]} Bg4 {[%emt 0:05:34]} 14. Rfe1 {[%emt 0:00:28]} b6 {[%emt 0:00:53]} 15. Bd4 {[%emt 0:02:20]} Nxd4 {[%emt 0:02:45]} 16. Nxd4 {[%emt 0:00:20]} Nf6 {[%emt 0:01:05]} 17. f3 {[%emt 0:02:47]} Bd7 {[%emt 0:03:51]} 18. Kf2 {[%emt 0:00:00]} Kf8 {[%emt 0:03:11]} 19. g4 {[%emt 0:00:00]} g6 {[%emt 0:01:04]} 20. h4 {[%emt 0:00:37]} a6 {[%emt 0:02:34]} 21. Nf1 {[%emt 0:00:41]} Kg7 {[%emt 0:03:03]} 22. Ng3 {[%emt 0:00:46]} Rh8 {[%emt 0:02:08]} 23. Rh1 {[%emt 0:04:16]} Rac8 {[%emt 0:04:14]} 24. Rae1 {[%emt 0:00:43]} b5 {[%emt 0:04:22]} 25. a3 {[%emt 0:01:25]} a5 {[%emt 0:00:04]} 26. Re7 {[%emt 0:03:16]} Rhd8 {[%emt 0:01:38]} 27. h5 {[%emt 0:04:27]} Kf8 {[%emt 0:07:08]} 28. Re2 {[%emt 0:01:06]} b4 {[%emt 0:00:26]} 29. axb4 {[%emt 0:00:50]} axb4 {[%emt 0:00:02]} 30. cxb4 {[%emt 0:00:23]} Rc4 {[%emt 0:00:16]} 31. Rd2 {[%emt 0:03:02]} Rxb4 {[%emt 0:00:47]} 32. hxg6 {[%emt 0:00:58]} fxg6 {[%emt 0:00:36]} 33. g5 {[%emt 0:02:59]} Ng8 {[%emt 0:00:19]} 34. Nge2 {[%emt 0:05:15]} Re8 {[%emt 0:02:24]} 35. Nf4 {[%emt 0:00:00]} Reb8 {[%emt 0:00:43]} 36. b3 {[%emt 0:00:00]} Be8 {[%emt 0:01:33]} 37. Nxd5 {[%emt 0:00:00]} 1-0

[Event "28th Hit Open-A 2024"]
[Site "Nova Gorica"]
[Date "2024.01.29"]
[Round "5.38"]
[White "Racnik, Tone"]
[Black "Ivsek, Cveto"]
[Result "1-0"]
[ECO "B13"]
[WhiteElo "1849"]
[BlackElo "1711"]
[Annotator "NA RC"]
[PlyCount "127"]
[EventDate "2024.01.22"]
[EventType "swiss"]
[EventCountry "SLO"]
[SourceTitle "playchess.com"]
[Source "ChessBase"]
[SourceQuality "1"]
[TimeControl "5400+30"]

1. e4 {[%emt 0:00:05]} c6 {[%emt 0:00:15]} 2. d4 {[%emt 0:00:15]} d5 {[%emt 0:00:06]} 3. exd5 {[%emt 0:00:29]} cxd5 {[%emt 0:00:36]} 4. Bd3 {[%emt 0:00:13]} Nc6 {[%emt 0:01:00]} 5. c3 {[%emt 0:00:13]} e6 {[%emt 0:06:40]} 6. Nf3 {[%emt 0:08:15]} h6 {[%emt 0:06:43]} 7. Bf4 {[%emt 0:02:00]} Bd6 {[%emt 0:00:22]} 8. Ne5 {[%emt 0:06:24]} Nxe5 {[%emt 0:01:42]} 9. dxe5 {[%emt 0:00:10]} Bc5 {[%emt 0:00:58]} 10. O-O {[%emt 0:05:28]} Bd7 {[%emt 0:02:07]} 11. b4 {[%emt 0:01:51]} Bb6 {[%emt 0:01:26]} 12. a4 {[%emt 0:00:59]} a6 {[%emt 0:02:35]} 13. Nd2 {[%emt 0:01:38]} Ne7 {[%emt 0:12:31]} 14. Nf3 {[%emt 0:13:14]} Nf5 {[%emt 0:03:55]} 15. Bxf5 {[%emt 0:10:57]} exf5 {[%emt 0:00:09]} 16. Qxd5 {[%emt 0:00:02]} Bc6 {[%emt 0:01:32]} 17. Qxd8+ {[%emt 0:09:42]} Rxd8 {[%emt 0:00:10]} 18. a5 {[%emt 0:00:04]} Ba7 {[%emt 0:00:20]} 19. Rfd1 {[%emt 0:00:23]} Bxf3 {[%emt 0:02:25]} 20. gxf3 {[%emt 0:00:05]} Ke7 {[%emt 0:03:27]} 21. Be3 {[%emt 0:00:35]} Bxe3 {[%emt 0:01:02]} 22. fxe3 {[%emt 0:00:04]} Rxd1+ {[%emt 0:04:21]} 23. Rxd1 {[%emt 0:00:32]} Rc8 {[%emt 0:00:07]} 24. Rd3 {[%emt 0:00:18]} Rc4 {[%emt 0:00:27]} 25. Kf2 {[%emt 0:02:52]} g5 {[%emt 0:01:06]} 26. Kg3 {[%emt 0:01:46]} f4+ {[%emt 0:01:39]} 27. exf4 {[%emt 0:00:12]} Rxf4 {[%emt 0:00:08]} 28. Rd6 {[%emt 0:00:23]} h5 {[%emt 0:01:50]} 29. Rb6 {[%emt 0:02:41]} h4+ {[%emt 0:02:50]} 30. Kg2 Rc4 {[%emt 0:00:00]} 31. Rxb7+ {[%emt 0:07:51]} Ke6 {[%emt 0:00:00]} 32. b5 {[%emt 0:04:18]} axb5 {[%emt 0:00:19]} 33. Rxb5 {[%emt 0:00:21]} Rxc3 {[%emt 0:00:16]} 34. h3 {[%emt 0:01:13]} Rc2+ {[%emt 0:01:46]} 35. Kg1 {[%emt 0:00:33]} Ra2 {[%emt 0:00:13]} 36. Kf1 {[%emt 0:00:14]} Kf5 {[%emt 0:00:25]} 37. e6+ {[%emt 0:00:22]} Kxe6 {[%emt 0:00:28]} 38. Rxg5 {[%emt 0:00:04]} f5 {[%emt 0:00:20]} 39. Rh5 {[%emt 0:02:05]} Rxa5 {[%emt 0:02:30]} 40. Rxh4 {[%emt 0:00:05]} Ra2 {[%emt 0:00:13]} 41. Rb4 {[%emt 0:02:15]} Ke5 {[%emt 0:06:41]} 42. Kg1 {[%emt 0:00:08]} f4 {[%emt 0:01:20]} 43. h4 {[%emt 0:00:23]} Rc2 {[%emt 0:01:11]} 44. Rb8 {[%emt 0:00:21]} Ra2 {[%emt 0:00:51]} 45. Rg8 {[%emt 0:00:17]} Kf5 {[%emt 0:01:21]} 46. Rg5+ {[%emt 0:04:24]} Kf6 {[%emt 0:00:12]} 47. Rb5 {[%emt 0:00:49]} Kg6 {[%emt 0:01:02]} 48. Rb8 {[%emt 0:01:58]} Kf5 {[%emt 0:04:36]} 49. Rg8 {[%emt 0:00:29]} Kf6 {[%emt 0:01:26]} 50. h5 {[%emt 0:03:13]} Ra5 {[%emt 0:01:15]} 51. h6 {[%emt 0:00:13]} Rh5 {[%emt 0:00:08]} 52. Rh8 {[%emt 0:03:50]} Rh4 {[%emt 0:03:24]} 53. Kf2 {[%emt 0:01:06]} Rh2+ {[%emt 0:00:20]} 54. Kf1 {[%emt 0:00:55]} Kg6 {[%emt 0:01:12]} 55. Ke1 {[%emt 0:01:09]} Rxh6 {[%emt 0:02:48]} 56. Rxh6+ {[%emt 0:00:09]} Kxh6 {[%emt 0:00:03]} 57. Kd2 {[%emt 0:00:03]} Kh5 {[%emt 0:00:18]} 58. Kd3 {[%emt 0:00:05]} Kh4 {[%emt 0:00:16]} 59. Kd4 {[%emt 0:00:21]} Kh3 {[%emt 0:01:45]} 60. Ke5 {[%emt 0:00:17]} Kh4 {[%emt 0:00:44]} 61. Kxf4 {[%emt 0:00:13]} Kh5 {[%emt 0:00:11]} 62. Kf5 {[%emt 0:00:29]} Kh6 {[%emt 0:00:05]} 63. Kf6 {[%emt 0:00:15]} Kh7 {[%emt 0:00:14]} 64. Kf7 {[%emt 0:01:16]} 1-0

[Event "28th Hit Open-A 2024"]
[Site "Nova Gorica"]
[Date "2024.01.29"]
[Round "5.39"]
[White "Novak, Rok"]
[Black "Cortese, Lina"]
[Result "1-0"]
[ECO "C02"]
[WhiteElo "1777"]
[BlackElo "1582"]
[Annotator "NA RC"]
[PlyCount "55"]
[EventDate "2024.01.22"]
[EventType "swiss"]
[EventCountry "SLO"]
[SourceTitle "playchess.com"]
[Source "ChessBase"]
[SourceQuality "1"]
[TimeControl "5400+30"]

1. d4 {[%emt 0:03:59]} e6 {[%emt 0:00:09]} 2. e4 {[%emt 0:00:13]} d5 {[%emt 0:00:14]} 3. e5 {[%emt 0:00:08]} c5 {[%emt 0:00:14]} 4. c3 {[%emt 0:00:36]} Nc6 {[%emt 0:00:21]} 5. Nf3 {[%emt 0:00:00]} Qb6 {[%emt 0:00:14]} 6. Be2 {[%emt 0:00:00]} cxd4 {[%emt 0:00:40]} 7. cxd4 {[%emt 0:00:03]} Nh6 {[%emt 0:00:36]} 8. Bxh6 {[%emt 0:00:42]} Qxb2 {[%emt 0:00:21]} 9. Nbd2 {[%emt 0:00:21]} gxh6 {[%emt 0:00:42]} 10. O-O {[%emt 0:01:56]} Nxd4 {[%emt 0:03:49]} 11. Qa4+ {[%emt 0:03:19]} Nc6 {[%emt 0:01:23]} 12. Bb5 {[%emt 0:02:20]} Bd7 {[%emt 0:01:10]} 13. Rab1 {[%emt 0:10:45]} Qa3 {[%emt 0:00:14]} 14. Qf4 {[%emt 0:06:05]} Qe7 {[%emt 0:03:30]} 15. Rfc1 {[%emt 0:05:58]} Bg7 {[%emt 0:02:04]} 16. Ba4 {[%emt 0:10:23]} O-O {[%emt 0:06:51]} 17. Rxb7 {[%emt 0:01:23]} Qa3 {[%emt 0:06:20]} 18. Nb3 {[%emt 0:04:31]} Rfc8 {[%emt 0:06:03]} 19. Rxd7 {[%emt 0:02:13]} Ne7 {[%emt 0:01:38]} 20. Rcc7 {[%emt 0:07:29]} Rxc7 {[%emt 0:04:36]} 21. Rxc7 {[%emt 0:00:15]} Bf8 {[%emt 0:05:15]} 22. g4 {[%emt 0:08:56]} Qxa2 {[%emt 0:00:26]} 23. Nbd2 {[%emt 0:03:13]} Qa1+ {[%emt 0:07:58]} 24. Kg2 {[%emt 0:00:31]} d4 {[%emt 0:00:18]} 25. Bc2 {[%emt 0:01:04]} Qa5 {[%emt 0:04:55]} 26. Rxe7 {[%emt 0:07:17]} Bxe7 {[%emt 0:01:03]} 27. Qxh6 {[%emt 0:00:12]} Rd8 {[%emt 0:04:49]} 28. Bxh7+ {[%emt 0:00:20]} 1-0

[Event "28th Hit Open-A 2024"]
[Site "Nova Gorica"]
[Date "2024.01.29"]
[Round "5.40"]
[White "Mihelj, Edvard"]
[Black "Rigatti, Giorgio"]
[Result "0-1"]
[ECO "B20"]
[WhiteElo "1618"]
[BlackElo "1749"]
[Annotator "NA RC"]
[PlyCount "114"]
[EventDate "2024.01.22"]
[EventType "swiss"]
[EventCountry "SLO"]
[SourceTitle "playchess.com"]
[Source "ChessBase"]
[SourceQuality "1"]
[TimeControl "5400+30"]

1. e4 {[%emt 0:00:03]} c5 {[%emt 0:00:11]} 2. Bc4 {[%emt 0:00:31]} e6 {[%emt 0:00:10]} 3. Nc3 {[%emt 0:00:43]} a6 {[%emt 0:00:09]} 4. a3 {[%emt 0:00:16]} b5 {[%emt 0:00:51]} 5. Ba2 {[%emt 0:00:17]} Bb7 {[%emt 0:00:41]} 6. d3 {[%emt 0:00:27]} Qc7 {[%emt 0:00:36]} 7. f4 {[%emt 0:01:48]} d6 {[%emt 0:01:38]} 8. Nf3 {[%emt 0:00:24]} Nf6 {[%emt 0:00:15]} 9. O-O {[%emt 0:00:43]} Be7 {[%emt 0:00:51]} 10. Ne2 {[%emt 0:01:21]} Nc6 {[%emt 0:01:46]} 11. Ng3 {[%emt 0:00:57]} g6 {[%emt 0:05:13]} 12. c3 {[%emt 0:01:02]} h5 {[%emt 0:00:24]} 13. h3 {[%emt 0:05:41]} Nh7 {[%emt 0:06:41]} 14. Ng5 {[%emt 0:01:58]} Nd8 {[%emt 0:02:48]} 15. Qe2 {[%emt 0:04:13]} Rc8 {[%emt 0:13:05]} 16. Be3 {[%emt 0:04:14]} d5 {[%emt 0:02:25]} 17. Nxh7 {[%emt 0:05:54]} Rxh7 {[%emt 0:01:08]} 18. e5 {[%emt 0:00:53]} Nc6 {[%emt 0:01:59]} 19. d4 {[%emt 0:02:42]} Na5 {[%emt 0:00:53]} 20. Rac1 {[%emt 0:01:43]} Nc4 {[%emt 0:03:55]} 21. Bb1 {[%emt 0:03:20]} Qb6 {[%emt 0:03:16]} 22. Kh2 {[%emt 0:01:46]} Rh8 {[%emt 0:04:46]} 23. Bd3 {[%emt 0:05:20]} cxd4 {[%emt 0:04:56]} 24. cxd4 {[%emt 0:02:11]} Kd7 {[%emt 0:01:12]} 25. Bxc4 {[%emt 0:06:00]} Rxc4 {[%emt 0:01:01]} 26. Rxc4 {[%emt 0:00:59]} bxc4 {[%emt 0:00:03]} 27. Rc1 {[%emt 0:01:31]} Bc6 {[%emt 0:00:13]} 28. Rc3 {[%emt 0:00:55]} Rb8 {[%emt 0:01:24]} 29. Rc2 {[%emt 0:01:24]} Ba4 {[%emt 0:00:23]} 30. Rd2 {[%emt 0:00:21]} Qb3 {[%emt 0:02:19]} 31. Qf3 {[%emt 0:01:42]} c3 {[%emt 0:00:59]} 32. bxc3 {[%emt 0:00:58]} Qxc3 {[%emt 0:00:03]} 33. f5 {[%emt 0:03:16]} Rb3 {[%emt 0:00:56]} 34. Re2 {[%emt 0:00:38]} h4 {[%emt 0:00:52]} 35. Nf1 {[%emt 0:00:29]} Bb5 {[%emt 0:00:30]} 36. f6 {[%emt 0:02:53]} Bxa3 {[%emt 0:00:50]} 37. Qg4 {[%emt 0:01:07]} Bxe2 {[%emt 0:01:12]} 38. Qxe2 {[%emt 0:00:16]} Qd3 {[%emt 0:00:20]} 39. Qf2 {[%emt 0:00:45]} Rb2 {[%emt 0:01:52]} 40. Nd2 {[%emt 0:03:30]} Bb4 {[%emt 0:01:54]} 41. Qf4 {[%emt 0:02:23]} Rxd2 {[%emt 0:02:13]} 42. Bxd2 {[%emt 0:00:42]} Qg3+ {[%emt 0:00:58]} 43. Kg1 {[%emt 0:00:44]} Qxf4 {[%emt 0:00:39]} 44. Bxf4 {[%emt 0:00:40]} Bc3 {[%emt 0:00:47]} 45. Kf1 {[%emt 0:02:17]} Bxd4 {[%emt 0:00:11]} 46. Ke1 {[%emt 0:00:31]} a5 {[%emt 0:00:10]} 47. Kd1 {[%emt 0:00:14]} a4 {[%emt 0:00:34]} 48. Kc2 {[%emt 0:00:52]} Kc6 {[%emt 0:00:15]} 49. Bg5 {[%emt 0:01:44]} Bf2 {[%emt 0:00:18]} 50. Bf4 {[%emt 0:00:58]} Kc5 {[%emt 0:00:28]} 51. Kb2 {[%emt 0:00:30]} d4 {[%emt 0:01:42]} 52. Kc2 {[%emt 0:03:32]} Be3 {[%emt 0:00:25]} 53. Bh2 {[%emt 0:00:30]} Kc4 {[%emt 0:00:12]} 54. g4 {[%emt 0:00:44]} a3 {[%emt 0:00:10]} 55. Kb1 {[%emt 0:01:12]} Kb3 {[%emt 0:00:09]} 56. Ka1 {[%emt 0:01:06]} Bc1 {[%emt 0:00:24]} 57. Bg1 {[%emt 0:01:04]} Bb2+ {[%emt 0:00:23]} 0-1

[Event "28th Hit Open-A 2024"]
[Site "Nova Gorica"]
[Date "2024.01.29"]
[Round "5.41"]
[White "Barbir, Petar"]
[Black "Trybus, Dominika"]
[Result "1/2-1/2"]
[ECO "B49"]
[WhiteElo "1738"]
[BlackElo "1530"]
[Annotator "NA RC"]
[PlyCount "50"]
[EventDate "2024.01.22"]
[EventType "swiss"]
[EventCountry "SLO"]
[SourceTitle "playchess.com"]
[Source "ChessBase"]
[SourceQuality "1"]
[TimeControl "5400+30"]

1. e4 {[%emt 0:00:03]} c5 {[%emt 0:01:08]} 2. Nf3 {[%emt 0:00:11]} e6 {[%emt 0:00:17]} 3. d4 {[%emt 0:00:08]} cxd4 {[%emt 0:00:05]} 4. Nxd4 {[%emt 0:00:08]} Nc6 {[%emt 0:00:42]} 5. Nc3 {[%emt 0:00:38]} Qc7 {[%emt 0:00:49]} 6. Be2 {[%emt 0:00:42]} Nf6 {[%emt 0:03:25]} 7. O-O {[%emt 0:01:58]} Be7 {[%emt 0:02:04]} 8. Be3 {[%emt 0:08:40]} a6 {[%emt 0:04:01]} 9. f4 {[%emt 0:06:11]} Nxd4 {[%emt 0:03:33]} 10. Qxd4 {[%emt 0:00:16]} O-O {[%emt 0:01:28]} 11. e5 {[%emt 0:03:27]} Ne8 {[%emt 0:02:39]} 12. a4 {[%emt 0:04:16]} d6 {[%emt 0:08:15]} 13. a5 {[%emt 0:11:50]} Bd7 {[%emt 0:02:38]} 14. Na4 {[%emt 0:06:56]} Qxc2 {[%emt 0:07:27]} 15. Nb6 {[%emt 0:05:27]} Rd8 {[%emt 0:03:42]} 16. Bd3 {[%emt 0:05:14]} dxe5 {[%emt 0:04:26]} 17. fxe5 {[%emt 0:03:00]} Qc7 {[%emt 0:01:14]} 18. Qe4 {[%emt 0:05:59]} g6 {[%emt 0:02:05]} 19. Bh6 {[%emt 0:01:48]} Bc6 {[%emt 0:00:44]} 20. Qe2 {[%emt 0:01:59]} Ng7 {[%emt 0:01:56]} 21. Rac1 {[%emt 0:00:52]} Bb4 {[%emt 0:05:58]} 22. Nc4 {[%emt 0:01:18]} Rd7 {[%emt 0:06:21]} 23. Nb6 {[%emt 0:06:08]} Rdd8 {[%emt 0:01:46]} 24. Nc4 {[%emt 0:00:46]} Rd7 {[%emt 0:00:22]} 25. Nb6 {[%emt 0:00:05]} Rdd8 {[%emt 0:00:19]} 1/2-1/2